bitfinex/quotes_SOLUSD_20220105
["timestamp","ask_amount","ask_price","bid_price","bid_amount"]
[1641363248039,1.8705,169.16,169.09,9.38]
[1641363248837,1.8705,169.16,169.09,9.12]
[1641363249041,2.20897904,169.15,169.09,9.12]
[1641363249438,2.70897904,169.15,169.09,9.12]
[1641363250239,2.70897904,169.15,169.09,9.38]
[1641363251670,2.20897904,169.15,169.09,9.38]
[1641363259182,2.20897904,169.15,169.09,9.12]
[1641363260487,2.20897904,169.15,169.09,9.38]
[1641363260892,2.20897904,169.15,169.09,9.12]
[1641363262616,2.70897904,169.15,169.09,9.12]
[1641363263016,2.20897904,169.15,169.09,9.12]
[1641363263521,2.20897904,169.15,169.09,9.38]
[1641363266619,2.20897904,169.15,169.09,9.12]
[1641363268021,2.20897904,169.15,169.09,9.38]
[1641363277032,2.20897904,169.15,169.09,9.12]
[1641363278432,2.20897904,169.15,169.09,9.38]
[1641363282337,2.70897904,169.15,169.09,8.88]
[1641363282535,2.70897904,169.15,169.09,8.62]
[1641363284339,2.70897904,169.15,169.09,8.88]
[1641363284738,2.70897904,169.15,169.09,0.32]
[1641363285139,2.70897904,169.15,169.09,0.06]
[1641363285540,1.292,169.14,169.09,0.06]
[1641363285946,1.792,169.14,169.09,0.06]
[1641363291975,1.292,169.14,169.09,0.06]
[1641363292175,1.792,169.14,169.09,0.06]
[1641363293377,1.292,169.14,169.09,0.06]
[1641363302788,1.292,169.14,169.11,0.16117]
[1641363302987,6.03045822,169.13,169.11,0.16117]
[1641363304290,2.44984597,169.12,169.11,0.16117]
[1641363304491,34.44984597,169.12,169.11,0.16117]
[1641363306292,2.44984597,169.12,169.11,0.16117]
[1641363307118,2.44984597,169.12,169.11,0.19314093]
[1641363307292,2.44984597,169.12,169.11,0.16117]
[1641363312802,63.63522861,169.12,169.11,0.16117]
[1641363313007,18.63522861,169.12,169.11,0.16117]
[1641363313200,19.13522861,169.12,169.11,0.16117]
[1641363313599,18.63522861,169.12,169.11,0.16117]
[1641363315501,2.44984597,169.12,169.11,0.16117]
[1641363317301,43.0,169.11,169.06,10.30197]
[1641363318401,2.44984597,169.12,169.06,10.30197]
[1641363321507,2.44984597,169.12,169.11,0.02]
[1641363322007,8.48030419,169.12,169.11,0.02]
[1641363325739,6.03045822,169.12,169.11,0.02]
[1641363325941,22.7347,169.14,169.11,0.05197093]
[1641363326140,23.2347,169.14,169.11,0.05197093]
[1641363326444,23.2347,169.14,169.11,0.02]
[1641363327343,2.54157617,169.13,169.11,0.02]
[1641363327744,3.04157617,169.13,169.11,0.02]
[1641363328545,0.5,169.13,169.11,0.02]
[1641363328745,0.5,169.13,169.12,0.03197093]
[1641363328951,23.2347,169.14,169.12,0.03197093]
[1641363329344,22.7347,169.14,169.12,0.03197093]
[1641363329544,23.2347,169.14,169.12,0.03197093]
[1641363329746,22.7347,169.14,169.12,0.03197093]
[1641363330346,22.2347,169.14,169.12,0.03197093]
[1641363333149,25.23492904,169.14,169.12,0.03197093]
[1641363333349,3.03022918,169.13,169.11,0.02]
[1641363333750,79.87,169.18,169.12,8.59197093]
[1641363333953,79.87,169.18,169.12,9.11197093]
[1641363334153,79.87,169.18,169.13,1.47846154]
[1641363334352,79.87,169.18,169.13,10.53846154]
[1641363334653,82.16585863,169.18,169.14,1.47846154]
[1641363334951,82.16585863,169.18,169.14,1.97846154]
[1641363335155,82.16585863,169.18,169.14,0.76]
[1641363335353,82.16585863,169.18,169.14,0.26]
[1641363335755,82.16585863,169.18,169.13,9.32]
[1641363336354,82.16585863,169.18,169.14,1.47846154]
[1641363336555,32.19312005,169.21,169.14,1.73846154]
[1641363336754,33.51292005,169.21,169.14,2.23846154]
[1641363337455,33.51292005,169.21,169.14,0.76]
[1641363337657,2.46373102,169.2,169.14,0.76]
[1641363337954,2.46373102,169.2,169.13,10.6844]
[1641363338155,25.37913102,169.2,169.13,10.6844]
[1641363339161,25.37913102,169.2,169.14,0.02]
[1641363342791,25.37913102,169.2,169.14,1.49846154]
[1641363342997,25.37913102,169.2,169.14,2.25846154]
[1641363343394,25.37913102,169.2,169.14,0.78]
[1641363343593,25.37913102,169.2,169.14,0.28]
[1641363343797,25.37913102,169.2,169.14,0.02]
[1641363345996,25.37913102,169.2,169.14,1.49846154]
[1641363346196,25.37913102,169.2,169.14,2.25846154]
[1641363347096,25.37913102,169.2,169.14,0.78]
[1641363347498,25.37913102,169.2,169.14,0.02]
[1641363347899,25.37913102,169.2,169.14,1.49846154]
[1641363348099,25.37913102,169.2,169.14,2.25846154]
[1641363349299,25.37913102,169.2,169.14,0.78]
[1641363349502,25.37913102,169.2,169.14,0.02]
[1641363350099,25.37913102,169.2,169.14,1.49846154]
[1641363350499,25.37913102,169.2,169.14,0.78]
[1641363350701,25.37913102,169.2,169.14,2.25846154]
[1641363351102,25.37913102,169.2,169.14,0.78]
[1641363351600,25.37913102,169.2,169.14,0.02]
[1641363352203,22.9154,169.2,169.14,0.02]
[1641363352404,22.9154,169.2,169.14,1.49846154]
[1641363352701,22.9154,169.2,169.14,1.75846154]
[1641363352903,22.9154,169.2,169.14,2.25846154]
[1641363354706,22.9154,169.2,169.15,8.56]
[1641363354906,22.9154,169.2,169.15,9.06]
[1641363355108,22.9154,169.2,169.15,9.32]
[1641363355307,22.9154,169.2,169.15,10.79846154]
[1641363355910,22.9154,169.2,169.15,9.32]
[1641363357508,22.9154,169.2,169.16,1.47846154]
[1641363357908,22.9154,169.2,169.16,0.76]
[1641363358110,3.99113101,169.21,169.16,2.23846154]
[1641363358510,1.3198,169.21,169.16,0.76]
[1641363358711,1.3198,169.21,169.15,9.32]
[1641363358913,1.3198,169.21,169.16,1.47846154]
[1641363359114,1.3198,169.21,169.16,0.26]
[1641363359313,1.3198,169.21,169.16,0.76]
[1641363359646,1.3198,169.21,169.16,2.23846154]
[1641363359812,1.3198,169.21,169.15,9.34]
[1641363360014,1.3198,169.21,169.16,0.5]
[1641363360311,1.3198,169.21,169.17,8.56]
[1641363360713,1.3198,169.21,169.17,9.06]
[1641363361514,1.3198,169.21,169.17,9.32]
[1641363364118,1.3198,169.21,169.17,9.34]
[1641363367020,24.0521,169.22,169.17,9.34]
[1641363367250,24.0521,169.22,169.18,1.47846154]
[1641363367549,24.0521,169.22,169.18,2.23846154]
[1641363367749,73.5749,169.23,169.19,8.56]
[1641363367949,73.5749,169.23,169.19,10.53846154]
[1641363368248,73.5749,169.23,169.2,1.47846154]
[1641363368447,1.2733,169.26,169.2,10.53846154]
[1641363368650,1.2733,169.26,169.2,10.79846154]
[1641363368651,2.84768493,169.25,169.2,10.79846154]
[1641363370752,2.84768493,169.25,169.21,1.47846154]
[1641363370951,2.84768493,169.25,169.21,10.53846154]
[1641363371151,2.84768493,169.25,169.21,10.79846154]
[1641363374755,2.84768493,169.25,169.21,10.81846154]
[1641363377158,25.9538,169.26,169.21,10.81846154]
[1641363378058,28.27510415,169.26,169.21,10.81846154]
[1641363380361,25.9538,169.26,169.21,10.81846154]
[1641363381367,1.6716697,169.29,169.22,1.47846154]
[1641363381560,23.7839,169.28,169.23,36.89376915]
[1641363381860,1.6716697,169.29,169.23,37.39376915]
[1641363382060,1.6716697,169.29,169.24,1.47846154]
[1641363382262,4.05349648,169.3,169.25,8.56]
[1641363382465,4.05349648,169.3,169.25,9.06]
[1641363382665,4.05349648,169.3,169.25,10.79846154]
[1641363384162,1.3168,169.3,169.25,10.79846154]
[1641363384964,1.3168,169.3,169.25,10.81846154]
[1641363388064,28.86670387,169.31,169.25,10.81846154]
[1641363388264,27.86670387,169.31,169.25,10.81846154]
[1641363388765,27.36670387,169.31,169.25,10.81846154]
[1641363388965,27.86670387,169.31,169.25,10.81846154]
[1641363389166,27.36670387,169.31,169.25,10.81846154]
[1641363389365,27.86670387,169.31,169.25,10.81846154]
[1641363389765,27.36670387,169.31,169.25,10.81846154]
[1641363390066,27.86670387,169.31,169.25,10.81846154]
[1641363390264,27.36670387,169.31,169.25,10.81846154]
[1641363391465,27.36670387,169.31,169.25,10.55846154]
[1641363392868,27.36670387,169.31,169.25,10.81846154]
[1641363393970,27.36670387,169.31,169.25,10.55846154]
[1641363395370,27.36670387,169.31,169.25,10.81846154]
[1641363398071,27.36670387,169.31,169.25,8.58]
[1641363399371,27.36670387,169.31,169.25,9.08]
[1641363399571,27.36670387,169.31,169.25,9.34]
[1641363401674,27.36670387,169.31,169.26,1.47846154]
[1641363401876,27.36670387,169.31,169.27,8.56]
[1641363402074,27.36670387,169.31,169.27,8.82]
[1641363402275,27.36670387,169.31,169.28,1.47846154]
[1641363402575,27.36670387,169.31,169.28,1.73846154]
[1641363402775,27.36670387,169.31,169.28,2.23846154]
[1641363402978,27.36670387,169.31,169.29,1.51043247]
[1641363403176,32.03022918,169.3,169.29,1.51043247]
[1641363403375,32.03022918,169.3,169.29,1.77043247]
[1641363403977,3.03022918,169.3,169.29,1.77043247]
[1641363404177,27.36670387,169.31,169.29,1.77043247]
[1641363404778,3.57020387,169.31,169.29,1.77043247]
[1641363405178,3.07020387,169.31,169.29,1.77043247]
[1641363406882,3.07020387,169.31,169.29,0.29197093]
[1641363407086,3.07020387,169.31,169.29,0.03197093]
[1641363410406,3.07020387,169.31,169.29,0.05197093]
[1641363424822,3.07020387,169.31,169.3,8.56]
[1641363425023,3.07020387,169.31,169.3,8.82]
[1641363427152,3.07020387,169.31,169.3,8.56]
[1641363428425,3.07020387,169.31,169.3,8.82]
[1641363430527,3.07020387,169.31,169.3,8.84]
[1641363433132,3.07020387,169.31,169.3,8.58]
[1641363434331,9.10066209,169.31,169.3,8.58]
[1641363434530,46.10066209,169.31,169.25,8.56]
[1641363434760,60.26,169.3,169.25,8.56]
[1641363434958,60.76,169.3,169.25,8.56]
[1641363435560,60.76,169.3,169.22,8.56]
[1641363435760,60.26,169.3,169.22,8.56]
[1641363435963,0.76,169.3,169.22,8.56]
[1641363436365,0.26,169.3,169.22,8.82]
[1641363436563,0.26,169.3,169.22,9.32]
[1641363436964,0.26,169.3,169.22,9.06]
[1641363437366,1.4986,169.3,169.22,9.06]
[1641363437567,1.9986,169.3,169.22,9.06]
[1641363438166,1.9986,169.3,169.22,9.32]
[1641363438466,1.2386,169.3,169.22,9.32]
[1641363438868,1.2386,169.3,169.22,33.5386]
[1641363439666,1.2386,169.3,169.22,33.5986]
[1641363439866,3.07020387,169.31,169.22,33.5986]
[1641363452286,3.07020387,169.31,169.22,33.3386]
[1641363453585,3.07020387,169.31,169.22,33.5986]
[1641363456890,3.07020387,169.31,169.23,1.47846154]
[1641363457090,3.07020387,169.31,169.24,8.56]
[1641363457493,3.07020387,169.31,169.25,1.47846154]
[1641363457692,3.07020387,169.31,169.26,8.56]
[1641363457895,3.07020387,169.31,169.26,9.06]
[1641363458093,3.07020387,169.31,169.26,9.32]
[1641363461795,3.07020387,169.31,169.26,9.06]
[1641363463399,16.2216171,169.3,169.26,8.56]
[1641363463599,16.2216171,169.3,169.23,1.47846154]
[1641363463800,16.2216171,169.3,169.23,1.97846154]
[1641363464401,17.5203171,169.3,169.23,1.97846154]
[1641363465005,17.5203171,169.3,169.23,2.23846154]
[1641363466403,17.5203171,169.3,169.23,0.26]
[1641363466604,17.5203171,169.3,169.22,8.82]
[1641363466804,17.5203171,169.3,169.22,9.32]
[1641363471452,1.2987,169.3,169.22,9.32]
[1641363473175,26.0932,169.3,169.22,9.32]
[1641363475477,26.0932,169.3,169.22,8.56]
[1641363475678,26.0932,169.3,169.19,8.56]
[1641363475878,31.3552,169.3,169.19,8.56]
[1641363476079,31.0952,169.3,169.19,8.56]
[1641363476282,31.0952,169.3,169.2,1.47846154]
[1641363476480,31.0952,169.3,169.19,8.56]
[1641363476681,30.5952,169.3,169.2,1.47846154]
[1641363476880,26.0932,169.3,169.2,1.97846154]
[1641363477081,26.5932,169.3,169.2,2.23846154]
[1641363477280,26.0932,169.3,169.2,2.23846154]
[1641363477683,26.5932,169.3,169.2,2.23846154]
[1641363477881,26.0932,169.3,169.2,2.23846154]
[1641363478481,26.5932,169.3,169.2,0.76]
[1641363478680,26.5932,169.3,169.19,9.32]
[1641363478881,103.517,169.3,169.19,9.32]
[1641363479081,103.517,169.3,169.19,10.79846154]
[1641363479782,103.517,169.3,169.19,10.53846154]
[1641363481284,105.1886697,169.3,169.19,10.79846154]
[1641363481782,105.1886697,169.3,169.19,9.32]
[1641363481982,105.1886697,169.3,169.19,10.79846154]
[1641363482583,105.4486697,169.3,169.19,10.79846154]
[1641363483584,105.4486697,169.3,169.19,9.32]
[1641363484083,105.4486697,169.3,169.19,10.79846154]
[1641363486984,103.777,169.3,169.19,10.79846154]
[1641363492689,103.777,169.3,169.19,10.29846154]
[1641363492890,103.777,169.3,169.19,9.32]
[1641363493091,103.777,169.3,169.19,10.79846154]
[1641363494090,109.298,169.3,169.19,10.03846154]
[1641363494291,109.298,169.3,169.19,8.56]
[1641363494696,1.6716697,169.29,169.19,8.56]
[1641363494895,2.1716697,169.29,169.19,8.56]
[1641363495194,2.4316697,169.29,169.19,8.56]
[1641363495995,2.82929581,169.27,169.19,8.56]
[1641363496397,3.58929581,169.27,169.19,8.56]
[1641363497098,3.58929581,169.27,169.19,8.82]
[1641363498100,3.32929581,169.27,169.19,8.82]
[1641363498299,3.32929581,169.27,169.19,10.29846154]
[1641363498728,2.82929581,169.27,169.19,10.29846154]
[1641363498928,3.32929581,169.27,169.19,8.82]
[1641363499329,3.32929581,169.27,169.2,1.47846154]
[1641363499532,3.32929581,169.27,169.2,0.26]
[1641363500333,3.32929581,169.27,169.17,9.06]
[1641363500334,1.2659,169.26,169.17,9.32]
[1641363500935,1.2659,169.26,169.18,1.2432]
[1641363501137,1.2659,169.26,169.18,1.5032]
[1641363501338,1.2659,169.26,169.18,2.98166154]
[1641363501537,1.2659,169.26,169.18,1.5032]
[1641363501735,1.2659,169.26,169.18,25.1782]
[1641363503136,1.2659,169.26,169.19,1.47846154]
[1641363503536,1.2659,169.26,169.19,0.26]
[1641363503736,1.2659,169.26,169.19,0.76]
[1641363504138,1.2659,169.26,169.19,0.5]
[1641363504338,1.2659,169.26,169.18,25.6782]
[1641363504741,1.2659,169.26,169.17,8.56]
[1641363504940,1.2659,169.26,169.17,9.06]
[1641363506141,1.2659,169.26,169.17,9.32]
[1641363506941,1.2659,169.26,169.18,1.282]
[1641363507441,1.2659,169.26,169.18,1.782]
[1641363507640,1.2659,169.26,169.19,1.47846154]
[1641363508041,1.2659,169.26,169.19,1.73846154]
[1641363508242,1.2659,169.26,169.19,0.26]
[1641363508641,1.2659,169.26,169.19,1.47846154]
[1641363508842,1.2659,169.26,169.19,0.26]
[1641363509442,1.2659,169.26,169.18,2.042]
[1641363509842,1.7659,169.26,169.18,2.042]
[1641363510443,1.7659,169.26,169.18,1.542]
[1641363510645,1.7659,169.26,169.18,2.042]
[1641363510847,1.7659,169.26,169.19,1.47846154]
[1641363511147,1.7659,169.26,169.19,1.73846154]
[1641363511346,1.7659,169.26,169.19,0.26]
[1641363511545,1.7659,169.26,169.18,2.042]
[1641363511947,1.7659,169.26,169.18,26.3811]
[1641363512248,1.7659,169.26,169.15,8.56]
[1641363512448,1.7659,169.26,169.17,0.5]
[1641363512849,1.7659,169.26,169.15,9.06]
[1641363513651,1.2659,169.26,169.15,10.6121]
[1641363513848,0.7659,169.26,169.15,10.6121]
[1641363514051,1.2659,169.26,169.15,10.3521]
[1641363514250,25.4707,169.26,169.12,1.335047]
[1641363514451,34.2907,169.26,169.12,1.335047]
[1641363515049,34.2907,169.26,169.12,2.81350854]
[1641363515250,74.3457,169.25,169.12,2.81350854]
[1641363515450,22.7392059,169.24,169.12,2.81350854]
[1641363515650,51.5785059,169.24,169.12,1.335047]
[1641363515850,52.3385059,169.24,169.12,2.81350854]
[1641363516449,1.2585,169.23,169.12,3.07350854]
[1641363516850,1.7585,169.23,169.12,3.07350854]
[1641363517050,2.0185,169.23,169.12,3.07350854]
[1641363517883,8.9725,169.23,169.12,2.81350854]
[1641363518081,23.9426,169.22,169.12,1.335047]
[1641363518283,2.8781057,169.21,169.12,1.335047]
[1641363518486,3.6381057,169.21,169.12,1.335047]
[1641363518886,24.834,169.2,169.12,1.335047]
[1641363519083,25.094,169.2,169.12,1.335047]
[1641363519284,25.594,169.2,169.12,1.595047]
[1641363520685,25.594,169.2,169.12,3.07350854]
[1641363520886,25.594,169.2,169.12,1.73846154]
[1641363521085,25.594,169.2,169.1,26.7812]
[1641363521486,25.594,169.2,169.06,10.03846154]
[1641363521685,104.3317,169.2,169.07,1.2885]
[1641363522085,104.3317,169.2,169.07,27.00609292]
[1641363522485,104.3317,169.2,169.07,27.50609292]
[1641363522885,104.3317,169.2,169.08,24.0715]
[1641363523086,104.0717,169.2,169.08,24.3315]
[1641363523288,104.0717,169.2,169.09,1.47846154]
[1641363523487,104.0717,169.2,169.09,1.73846154]
[1641363523889,104.0717,169.2,169.1,1.47846154]
[1641363524092,104.0717,169.2,169.1,2.97816154]
[1641363524487,104.0717,169.2,169.11,1.47846154]
[1641363525089,104.0717,169.2,169.11,1.73846154]
[1641363525788,103.5717,169.2,169.11,1.73846154]
[1641363535803,103.5717,169.2,169.11,1.47846154]
[1641363536038,103.8317,169.2,169.1,1.2397]
[1641363537239,103.8317,169.2,169.1,1.4997]
[1641363537439,103.8317,169.2,169.1,1.2397]
[1641363537637,103.8317,169.2,169.1,1.4997]
[1641363538941,103.8317,169.2,169.1,1.2397]
[1641363540341,103.8317,169.2,169.1,1.4997]
[1641363541341,103.8317,169.2,169.1,2.97816154]
[1641363541743,103.8317,169.2,169.1,3.47816154]
[1641363542144,103.8317,169.2,169.1,2.97816154]
[1641363546251,103.8317,169.2,169.1,1.4997]
[1641363546451,103.5717,169.2,169.1,2.97816154]
[1641363546654,103.0717,169.2,169.1,2.97816154]
[1641363546852,103.5717,169.2,169.1,2.97816154]
[1641363547855,103.5717,169.2,169.1,3.47816154]
[1641363556783,103.5717,169.2,169.1,3.21816154]
[1641363556985,103.8317,169.2,169.1,3.21816154]
[1641363557982,103.8317,169.2,169.1,3.47816154]
[1641363561086,103.8317,169.2,169.1,2.97816154]
[1641363562588,103.8317,169.2,169.1,2.71816154]
[1641363563886,103.8317,169.2,169.1,2.97816154]
[1641363566990,103.8317,169.2,169.1,3.47816154]
[1641363567188,103.3317,169.2,169.1,2.97816154]
[1641363567391,103.3317,169.2,169.1,3.47816154]
[1641363567691,103.3317,169.2,169.1,2.97816154]
[1641363567889,103.8317,169.2,169.1,3.47816154]
[1641363568291,103.3317,169.2,169.1,2.97816154]
[1641363573002,103.0717,169.2,169.1,11.53816154]
[1641363573300,103.0717,169.2,169.1,12.03816154]
[1641363573901,103.0717,169.2,169.11,24.6816]
[1641363574100,1.6716697,169.22,169.11,24.9416]
[1641363574301,1.6716697,169.22,169.12,10.03846154]
[1641363574501,1.6716697,169.22,169.12,10.29846154]
[1641363574703,1.6716697,169.22,169.13,1.47846154]
[1641363574902,1.6716697,169.22,169.14,38.16178633]
[1641363575103,4.05556174,169.22,169.14,38.42178633]
[1641363575404,2.38389204,169.22,169.15,1.47846154]
[1641363575604,2.38389204,169.22,169.15,1.73846154]
[1641363575804,2.38389204,169.22,169.15,10.29846154]
[1641363576007,2.38389204,169.22,169.16,1.47846154]
[1641363576405,2.38389204,169.22,169.16,1.73846154]
[1641363576905,2.38389204,169.22,169.17,1.47846154]
[1641363577206,2.38389204,169.22,169.17,1.73846154]
[1641363577408,98.131,169.25,169.17,1.73846154]
[1641363577606,98.391,169.25,169.17,1.73846154]
[1641363577805,98.391,169.25,169.18,1.47846154]
[1641363578008,98.391,169.25,169.18,1.73846154]
[1641363578611,2.87382858,169.24,169.18,1.73846154]
[1641363579008,3.13382858,169.24,169.18,1.73846154]
[1641363583015,3.13382858,169.24,169.18,0.26]
[1641363583520,3.13382858,169.24,169.18,1.47846154]
[1641363583913,3.13382858,169.24,169.18,1.73846154]
[1641363584314,3.13382858,169.24,169.18,0.26]
[1641363584515,3.13382858,169.24,169.16,1.5942]
[1641363584714,3.13382858,169.24,169.17,1.47846154]
[1641363585116,3.13382858,169.24,169.17,1.73846154]
[1641363585916,4.15242858,169.24,169.17,1.73846154]
[1641363586115,2.87382858,169.24,169.18,1.47846154]
[1641363586516,2.87382858,169.24,169.18,1.73846154]
[1641363586917,1.6716697,169.27,169.18,1.73846154]
[1641363587119,1.6716697,169.27,169.19,1.47846154]
[1641363587317,1.9316697,169.27,169.19,1.47846154]
[1641363587519,1.9316697,169.27,169.19,1.73846154]
[1641363587818,0.26,169.27,169.19,1.73846154]
[1641363588020,31.63061812,169.28,169.19,1.73846154]
[1641363588219,26.28906523,169.27,169.2,1.47846154]
[1641363588646,26.54906523,169.27,169.2,1.73846154]
[1641363589244,27.80066523,169.27,169.21,1.47846154]
[1641363589744,27.80066523,169.27,169.21,1.73846154]
[1641363591047,27.80066523,169.27,169.21,1.47846154]
[1641363591448,27.54066523,169.27,169.21,1.47846154]
[1641363591748,27.80066523,169.27,169.21,1.47846154]
[1641363592447,27.80066523,169.27,169.21,1.73846154]
[1641363594150,27.80066523,169.27,169.21,0.26]
[1641363594350,24.8465,169.27,169.21,0.26]
[1641363594557,1.6716697,169.28,169.21,1.47846154]
[1641363594951,1.6716697,169.3,169.21,1.73846154]
[1641363595152,1.6716697,169.3,169.22,9.8735]
[1641363595551,4.6755342,169.3,169.22,10.1335]
[1641363596254,3.0038645,169.3,169.22,10.1335]
[1641363596951,3.0038645,169.3,169.22,9.8735]
[1641363598454,3.0038645,169.3,169.22,10.1335]
[1641363604757,1.6716697,169.29,169.22,10.1335]
[1641363605361,1.6716697,169.29,169.22,11.35196154]
[1641363606563,1.6716697,169.29,169.22,11.61196154]
[1641363606762,1.6716697,169.29,169.22,11.35196154]
[1641363606962,1.6716697,169.29,169.22,10.03846154]
[1641363608063,1.9316697,169.29,169.22,1.47846154]
[1641363608563,1.6716697,169.29,169.22,1.47846154]
[1641363608762,1.6716697,169.28,169.22,1.47846154]
[1641363609966,1.6716697,169.28,169.22,1.73846154]
[1641363613674,7.8546697,169.28,169.2,1.3607]
[1641363613871,24.9487,169.27,169.2,1.3607]
[1641363614072,25.2087,169.27,169.2,1.3607]
[1641363614374,24.9487,169.27,169.2,1.3607]
[1641363614571,27.9799697,169.27,169.2,1.3607]
[1641363614973,27.9799697,169.27,169.2,1.6207]
[1641363615674,28.2399697,169.27,169.2,1.6207]
[1641363616675,27.9799697,169.27,169.2,1.6207]
[1641363617877,28.2399697,169.27,169.2,1.6207]
[1641363620584,26.5683,169.27,169.2,1.6207]
[1641363623811,26.5683,169.27,169.14,8.56]
[1641363624012,72.1621,169.26,169.15,22.9771]
[1641363624510,2.68611871,169.24,169.15,22.9771]
[1641363624911,23.19432162,169.24,169.15,22.9771]
[1641363625111,23.19432162,169.24,169.15,23.2371]
[1641363625311,23.6573,169.23,169.15,23.2371]
[1641363626514,25.2534,169.23,169.12,9.8439]
[1641363626715,25.2534,169.23,169.13,1.2724]
[1641363627117,25.7534,169.23,169.13,1.2724]
[1641363627317,1.6716697,169.22,169.13,23.89]
[1641363627515,1.9316697,169.22,169.13,23.89]
[1641363627716,2.4316697,169.22,169.13,24.39]
[1641363627918,1.9316697,169.22,169.13,24.65]
[1641363628116,0.26,169.22,169.13,24.65]
[1641363628317,27.4250697,169.23,169.13,24.65]
[1641363628917,27.1650697,169.23,169.13,24.65]
[1641363629318,27.1650697,169.23,169.13,24.15]
[1641363629618,27.1650697,169.23,169.13,32.71]
[1641363630424,25.4934,169.23,169.13,32.71]
[1641363630621,25.4934,169.23,169.13,33.21]
[1641363633327,24.9934,169.23,169.13,33.21]
[1641363649875,24.9934,169.23,169.13,32.95]
[1641363650978,24.9934,169.23,169.13,33.21]
[1641363656584,24.9934,169.23,169.13,34.68846154]
[1641363657184,23.6573,169.23,169.13,34.68846154]
[1641363658187,23.6573,169.23,169.13,34.42846154]
[1641363658389,23.6573,169.23,169.13,32.95]
[1641363659713,23.6573,169.23,169.13,33.21]
[1641363661002,23.6573,169.23,169.13,34.68846154]
[1641363663492,23.6573,169.23,169.13,33.21]
[1641363666291,24.1573,169.23,169.13,33.21]
[1641363666491,25.4417,169.23,169.13,33.21]
[1641363667392,25.4417,169.23,169.13,32.95]
[1641363668994,25.4417,169.23,169.13,33.21]
[1641363670297,24.9417,169.23,169.13,33.21]
[1641363673804,24.9417,169.23,169.13,32.95]
[1641363675035,24.9417,169.23,169.13,33.21]
[1641363679228,24.9417,169.23,169.13,10.5924]
[1641363684934,24.9417,169.23,169.13,12.07086154]
[1641363685336,24.9417,169.23,169.13,10.5924]
[1641363685536,24.9417,169.23,169.14,1.47846154]
[1641363685736,24.9417,169.23,169.14,24.57476154]
[1641363685936,24.9417,169.23,169.14,25.33476154]
[1641363686136,24.9417,169.23,169.15,1.47846154]
[1641363686540,24.9417,169.23,169.15,2.23846154]
[1641363687635,24.9417,169.23,169.15,2.0793]
[1641363688237,24.9417,169.23,169.15,3.55776154]
[1641363688636,24.9417,169.23,169.15,2.0793]
[1641363689040,24.9417,169.23,169.15,3.55776154]
[1641363689839,24.9417,169.23,169.15,12.11776154]
[1641363707056,24.9417,169.23,169.15,10.6393]
[1641363707656,24.9417,169.23,169.15,12.11776154]
[1641363708058,24.9417,169.23,169.15,10.6393]
[1641363709183,24.9417,169.23,169.15,12.11776154]
[1641363712490,24.9417,169.23,169.15,10.3793]
[1641363712688,24.4417,169.23,169.15,10.3793]
[1641363712890,24.4417,169.23,169.16,1.47846154]
[1641363713090,24.4417,169.23,169.17,8.56]
[1641363713491,24.4417,169.23,169.17,9.06]
[1641363713991,24.4417,169.23,169.17,9.32]
[1641363717095,24.4417,169.23,169.17,9.06]
[1641363717397,24.4417,169.23,169.17,0.5]
[1641363717896,24.4417,169.23,169.14,32.1563]
[1641363718299,24.4417,169.23,169.14,33.63476154]
[1641363718499,24.4417,169.23,169.14,33.89476154]
[1641363722507,27.29913481,169.23,169.15,1.338]
[1641363722808,27.29913481,169.23,169.16,8.56]
[1641363723007,27.29913481,169.23,169.16,8.82]
[1641363723206,27.29913481,169.23,169.16,9.32]
[1641363725511,27.29913481,169.23,169.17,1.47846154]
[1641363725709,27.29913481,169.23,169.17,10.03846154]
[1641363725910,27.29913481,169.23,169.17,10.79846154]
[1641363726109,27.29913481,169.23,169.18,1.47846154]